fUST/lending_fUST_20240315
["ID","MTS","AMOUNT","RATE_DAILY","PERIOD"]
[318979777,1710477033483,-13238.18106759,0.00020855,2]
[318979778,1710477033491,-155.2443416,0.00020855,2]
[318979779,1710477033501,-312.60129477,0.00020855,2]
[318979780,1710477033511,-155.16136782,0.00020855,2]
[318979781,1710477033520,-503.1309609,0.00020855,2]
[318979782,1710477033529,-508.99353725,0.00020855,2]
[318979783,1710477033537,-500.0,0.00020855,2]
[318979784,1710477033546,-500.0,0.00020855,2]
[318979785,1710477033555,-500.0,0.00020855,2]
[318979786,1710477033564,-500.0,0.00020855,2]
[318979787,1710477033573,-500.0,0.00020855,2]
[318979788,1710477033583,-500.0,0.00020855,2]
[318979789,1710477033592,-500.0,0.00020855,2]
[318979790,1710477033601,-500.0,0.00020855,2]
[318979791,1710477033610,-500.0,0.00020855,2]
[318979792,1710477033619,-322.02543239,0.00020855,2]
[318979793,1710477033628,-500.0,0.00020855,2]
[318979794,1710477033638,-501.54553248,0.00020855,2]
[318979795,1710477033648,-500.0,0.00020855,2]
[318979796,1710477033657,-500.0,0.00020855,2]
[318979797,1710477033666,-500.0,0.00020855,2]
[318979798,1710477033676,-500.0,0.00020855,2]
[318979799,1710477033686,-500.0,0.00020855,2]
[318979800,1710477033694,-500.0,0.00020855,2]
[318979801,1710477033784,-500.0,0.00020855,2]
[318979802,1710477033794,-500.0,0.00020855,2]
[318979803,1710477033803,-500.0,0.00020855,2]
[318979804,1710477033813,-500.0,0.00020855,2]
[318979805,1710477033822,-500.0,0.00020855,2]
[318979806,1710477033831,-500.0,0.00020855,2]
[318979807,1710477033842,-500.0,0.00020855,2]
[318979808,1710477033853,-500.0,0.00020855,2]
[318979809,1710477033863,-500.0,0.00020855,2]
[318979810,1710477033873,-513.31083506,0.00020855,2]
[318979811,1710477033883,-655.08,0.00020855,2]
[318979812,1710477033892,-655.08,0.00020855,2]
[318979813,1710477033902,-500.0,0.00020855,2]
[318979814,1710477033912,-655.08,0.00020855,2]
[318979815,1710477033921,-500.0,0.00020855,2]
[318979816,1710477033931,-655.08,0.00020855,2]
[318979817,1710477033940,-655.08,0.00020855,2]
[318979818,1710477033950,-500.0,0.00020855,2]
[318979819,1710477033959,-500.0,0.00020855,2]
[318979820,1710477033968,-655.08,0.00020855,2]
[318979821,1710477033978,-500.0,0.00020855,2]
[318979822,1710477033988,-655.08,0.00020855,2]
[318979823,1710477033997,-500.0,0.00020855,2]
[318979824,1710477034008,-655.08,0.00020855,2]
[318979825,1710477034018,-500.0,0.00020855,2]
[318979826,1710477034027,-655.08,0.00020855,2]
[318979827,1710477034036,-500.0,0.00020855,2]
[318979828,1710477034046,-655.08,0.00020855,2]
[318979829,1710477034056,-500.0,0.00020855,2]
[318979830,1710477034065,-655.08,0.00020855,2]
[318979831,1710477034075,-500.0,0.00020855,2]
[318979832,1710477034085,-655.08,0.00020855,2]
[318979833,1710477034094,-500.0,0.00020855,2]
[318979834,1710477034103,-655.08,0.00020855,2]
[318979835,1710477034112,-500.0,0.00020855,2]
[318979836,1710477034121,-500.0,0.00020855,2]
[318979837,1710477034130,-655.1171395,0.00020855,2]
[318979838,1710477034140,-500.0,0.00020855,2]
[318979839,1710477034150,-538.32209982,0.00020855,2]
[318979840,1710477034159,-350.493,0.00020855,2]
[318979841,1710477034168,-2735.9,0.00020855,2]
[318979842,1710477034177,-2735.9,0.00020855,2]
[318979843,1710477034187,-2735.9,0.00020855,2]
[318979844,1710477034196,-2735.9,0.00020855,2]
[318979845,1710477034206,-2735.9,0.00020855,2]
[318979846,1710477034215,-2735.9,0.00020855,2]
[318979847,1710477034225,-2735.9,0.00020855,2]
[318979848,1710477034234,-2735.9,0.00020855,2]
[318979849,1710477034243,-2735.9,0.00020855,2]
[318979850,1710477034255,-2735.9,0.00020855,2]
[318979851,1710477034265,-2735.9,0.00020855,2]
[318979852,1710477034274,-2735.9,0.00020855,2]
[318979853,1710477034284,-2735.9,0.00020855,2]
[318979854,1710477034293,-2735.9587128,0.00020855,2]
[318979855,1710477034303,-310.53228317,0.00020855,2]
[318979856,1710477034312,-1557.66,0.00020855,2]
[318979857,1710477034321,-1557.66,0.00020855,2]
[318979858,1710477034331,-1557.66,0.00020855,2]
[318979859,1710477034340,-1557.66,0.00020855,2]
[318979860,1710477034349,-1557.66,0.00020855,2]
[318979861,1710477034359,-1557.66,0.00020855,2]
[318979862,1710477034367,-1557.66,0.00020855,2]
[318979863,1710477034377,-1557.66,0.00020855,2]
[318979864,1710477034386,-1557.66,0.00020855,2]
[318979865,1710477034395,-1557.66,0.00020855,2]
[318979866,1710477034405,-1557.66,0.00020855,2]
[318979867,1710477034414,-1557.66,0.00020855,2]
[318979868,1710477034424,-1557.66,0.00020855,2]
[318979869,1710477034433,-1557.81,0.00020855,2]
[318979870,1710477034443,-3276.93,0.00020855,2]
[318979871,1710477034452,-3276.93,0.00020855,2]
[318979872,1710477034461,-3276.93,0.00020855,2]
[318979873,1710477034470,-3276.93,0.00020855,2]
[318979874,1710477034479,-3276.93,0.00020855,2]
[318979875,1710477034489,-3276.93,0.00020855,2]
[318979876,1710477034498,-3276.93,0.00020855,2]
[318979877,1710477034509,-3276.93,0.00020855,2]
[318979878,1710477034519,-3276.93,0.00020855,2]
[318979879,1710477034528,-3276.93,0.00020855,2]
[318979880,1710477034537,-3276.93,0.00020855,2]
[318979881,1710477034546,-3276.93,0.00020855,2]
[318979882,1710477034555,-3276.93,0.00020855,2]
[318979883,1710477034564,-3277.01762745,0.00020855,2]
[318979884,1710477034573,-161320.01889741,0.00020855,10]
[318979961,1710477042365,-956349.99999985,0.00020855,10]
[318979963,1710477042387,-20000.261286,0.00020855,10]
[318979980,1710477043055,-892.1364065,0.00020855,10]
[318979991,1710477046252,-311.66645558,0.00020647,2]
[318979992,1710477046267,-67334.68796222,0.00020855,10]
[318979993,1710477059145,336.85111185,0.00019948,2]
[318979994,1710477120660,910.41978232,0.00019925,2]
[318979995,1710477126497,2303.02942273,0.0002,5]
[318979996,1710477193848,224.268634,0.00019829,2]
[318980048,1710478232140,-2000.0,0.00020025,2]
[318980050,1710478232151,-165.31384015,0.00020655,2]
[318980052,1710478232161,-500.0,0.00020753,2]
[318980054,1710478232171,-9613.66144779,0.00020754,2]
[318980056,1710478232183,-12594.62057157,0.00020754,2]
[318980057,1710478232194,-500.0,0.00020755,2]
[318980058,1710478232204,-500.0,0.00020852,2]
[318980059,1710478232214,-500.0,0.00020853,2]
[318980060,1710478232224,-169.21816455,0.00020853,2]
[318980061,1710478232233,-500.0,0.00020853,2]
[318980062,1710478232243,-500.81946952,0.00020853,2]
[318980063,1710478232253,-500.0,0.00020853,2]
[318980064,1710478232262,-500.0,0.00020853,2]
[318980065,1710478232272,-500.0,0.00020853,2]
[318980066,1710478232281,-187.37817515,0.00020853,2]
[318980067,1710478232290,-798.76066564,0.00020853,2]
[318980137,1710478238133,-21.13975689,0.00020853,2]
[318980138,1710478238143,-540.97595126,0.00020853,2]
[318980139,1710478238153,-155.3317415,0.00020853,2]
[318980140,1710478238163,-272.06171086,0.00020853,2]
[318980141,1710478238173,-270.01628989,0.00020853,2]
[318980142,1710478238184,-561.60302871,0.00020853,2]
[318980156,1710478241382,-184.61492513,0.00020853,2]
[318980157,1710478241393,-322.32581664,0.00020854,2]
[318980158,1710478241403,-1010.38340673,0.00020854,2]
[318980159,1710478241413,-500.0,0.00020855,2]
[318980160,1710478241422,-285.70527423,0.00020855,2]
[318980161,1710478241434,-214.29472577,0.00020855,2]
[318980162,1710478241444,-501.68409743,0.00020855,2]
[318980163,1710478241454,-500.0,0.00020855,2]
[318980164,1710478241463,-475.16,0.00020855,2]
[318980165,1710478241473,-500.0,0.00020855,2]
[318980166,1710478241482,-500.0,0.00020855,2]
[318980167,1710478241491,-500.0,0.00020855,2]
[318980168,1710478241501,-500.0,0.00020855,2]
[318980169,1710478241510,-500.0,0.00020855,2]
[318980170,1710478241519,-500.0,0.00020855,2]
[318980171,1710478241529,-500.0,0.00020855,2]
[318980172,1710478241606,-500.0,0.00020855,2]
[318980173,1710478241644,-500.0,0.00020855,2]
[318980174,1710478241655,-558.2,0.00020855,2]
[318980175,1710478241664,-214556.3724363,0.00020855,10]
[318980200,1710478243227,-11357.76240872,0.00020855,10]
[318980201,1710478243240,-252.73760854,0.00020855,10]
[318980202,1710478243253,-10697.78705895,0.00020855,10]
[318980211,1710478246348,-3942.13649026,0.00020855,10]
[318980212,1710478246364,-680.77559054,0.00020855,10]
[318980213,1710478246415,-33933.4120875,0.00020855,10]
[318980215,1710478451298,-20000.0,0.00027,120]
[318980216,1710478451320,-2489.99238555,0.00027,120]
[318980217,1710478451361,-7510.00761445,0.00028,120]
[318980218,1710478587277,201.096821,0.00019902,2]
[318980220,1710478856784,-929.3282691,0.00020024,2]
[318980221,1710478856812,-16724.7429235,0.00020024,2]
[318980222,1710478856843,-2000.0,0.00020025,2]
[318980223,1710478856870,-620.92698628,0.00020154,2]
[318980224,1710478856898,-1000.0,0.00020755,2]
[318980225,1710478856925,-236.20338182,0.00020853,2]
[318980226,1710478856952,-1060.938,0.00020853,2]
[318980227,1710478856978,-294.88454091,0.00020853,2]
[318980228,1710478857004,-596.24595709,0.00020853,2]
[318980229,1710478857032,-3223.90400517,0.00020853,2]
[318980230,1710478857058,-155.39390741,0.00020854,2]
[318980231,1710478857085,-3163.00519819,0.00020854,2]
[318980232,1710478857111,-500.0,0.00020855,2]
[318980233,1710478857139,-500.0,0.00020855,2]
[318980234,1710478857166,-502.38456312,0.00020855,2]
[318980235,1710478857194,-500.53641908,0.00020855,2]
[318980236,1710478857222,-500.0,0.00020855,2]
[318980237,1710478857249,-500.0,0.00020855,2]
[318980238,1710478857274,-500.0,0.00020855,2]
[318980239,1710478857300,-500.0,0.00020855,2]
[318980240,1710478857330,-500.0,0.00020855,2]
[318980241,1710478857356,-500.0,0.00020855,2]
[318980242,1710478857384,-500.0,0.00020855,2]
[318980243,1710478857412,-500.0,0.00020855,2]
[318980244,1710478857439,-500.0,0.00020855,2]
[318980245,1710478857466,-500.0,0.00020855,2]
[318980246,1710478857492,-500.0,0.00020855,2]
[318980247,1710478857518,-500.0,0.00020855,2]
[318980248,1710478857545,-500.0,0.00020855,2]
[318980249,1710478857570,-500.0,0.00020855,2]
[318980250,1710478857597,-219.35,0.00020855,2]
[318980251,1710478857624,-926.25,0.00020855,2]
[318980252,1710478857651,-926.25,0.00020855,2]
[318980253,1710478857677,-926.25,0.00020855,2]
[318980254,1710478857703,-926.25,0.00020855,2]
[318980255,1710478857731,-500.0,0.00020855,2]
[318980256,1710478857757,-511.69234611,0.00020855,2]
[318980257,1710478857783,-926.25,0.00020855,2]
[318980258,1710478857811,-926.25,0.00020855,2]
[318980259,1710478857840,-926.25,0.00020855,2]
[318980260,1710478857867,-926.25,0.00020855,2]
[318980261,1710478857976,-926.25,0.00020855,2]
[318980262,1710478858004,-926.25,0.00020855,2]
[318980263,1710478858031,-926.25,0.00020855,2]
[318980264,1710478858058,-926.25,0.00020855,2]
[318980265,1710478858085,-926.25,0.00020855,2]
[318980266,1710478858111,-926.25,0.00020855,2]
[318980267,1710478858139,-926.25,0.00020855,2]
[318980268,1710478858166,-819.16747168,0.00020855,2]
[318980269,1710478873256,-545.51720937,0.00020799,2]
[318980270,1710478873286,-929.3282691,0.00020853,2]
[318980271,1710478873315,-1882.92818814,0.00020854,2]
[318980272,1710478873342,-3500.01988252,0.00020854,2]
[318980273,1710478873371,-107.08252832,0.00020855,2]
[318980274,1710478873401,-926.25,0.00020855,2]
[318980275,1710478873430,-926.25,0.00020855,2]
[318980276,1710478873457,-926.25,0.00020855,2]
[318980277,1710478873484,-926.25,0.00020855,2]
[318980278,1710478873511,-926.25,0.00020855,2]
[318980279,1710478873538,-926.25,0.00020855,2]
[318980280,1710478873564,-926.25,0.00020855,2]
[318980281,1710478873595,-926.25398816,0.00020855,2]
[318980282,1710478873622,-500.0,0.00020855,2]
[318980283,1710478873647,-555.79336562,0.00020855,2]
[318980284,1710478873674,-500.0,0.00020855,2]
[318980285,1710478873702,-500.0,0.00020855,2]
[318980286,1710478873731,-507.43587066,0.00020855,2]
[318980287,1710478873757,-500.0,0.00020855,2]
[318980288,1710478873784,-500.0,0.00020855,2]
[318980289,1710478873812,-500.0,0.00020855,2]
[318980290,1710478873841,-500.0,0.00020855,2]
[318980291,1710478873866,-500.0,0.00020855,2]
[318980292,1710478873892,-500.0,0.00020855,2]
[318980293,1710478873918,-500.0,0.00020855,2]
[318980294,1710478873945,-285.9780106,0.00020855,2]
[318980295,1710478873972,-500.0,0.00020855,2]
[318980296,1710478873999,-500.0,0.00020855,2]
[318980297,1710478874025,-500.0,0.00020855,2]
[318980298,1710478874053,-500.0,0.00020855,2]
[318980299,1710478874080,-500.0,0.00020855,2]
[318980300,1710478874110,-500.0,0.00020855,2]
[318980301,1710478874136,-500.0,0.00020855,2]
[318980302,1710478874163,-500.0,0.00020855,2]
[318980303,1710478874193,-500.0,0.00020855,2]
[318980304,1710478874219,-500.0,0.00020855,2]
[318980305,1710478874247,-500.0,0.00020855,2]
[318980306,1710478874275,-500.0,0.00020855,2]
[318980307,1710478874306,-571.97,0.00020855,2]
[318980308,1710478874340,-500.0,0.00020855,2]
[318980309,1710478874368,-508.04137979,0.00020855,2]
[318980310,1710478874396,-500.0,0.00020855,2]
[318980311,1710478874424,-500.0,0.00020855,2]
[318980312,1710478874451,-500.89869436,0.00020855,2]
[318980313,1710478874478,-500.0,0.00020855,2]
[318980314,1710478874505,-500.0,0.00020855,2]
[318980315,1710478874531,-500.0,0.00020855,2]
[318980316,1710478874558,-500.0,0.00020855,2]
[318980317,1710478874589,-500.0,0.00020855,2]
[318980318,1710478874619,-500.0,0.00020855,2]
[318980319,1710478874647,-500.0,0.00020855,2]
[318980320,1710478874675,-500.0,0.00020855,2]
[318980321,1710478874789,-500.0,0.00020855,2]
[318980322,1710478874821,-500.0,0.00020855,2]
[318980323,1710478875064,-500.0,0.00020855,2]
[318980324,1710478875096,-500.0,0.00020855,2]
[318980325,1710478875123,-500.0,0.00020855,2]
[318980326,1710478875149,-558.36933196,0.00020855,2]
[318980327,1710478875175,-501.00542933,0.00020855,2]
[318980328,1710478875200,-500.0,0.00020855,2]
[318980329,1710478875234,-500.0,0.00020855,2]
[318980330,1710478875264,-500.0,0.00020855,2]
[318980331,1710478875299,-500.0,0.00020855,2]
[318980332,1710478875326,-500.0,0.00020855,2]
[318980333,1710478875356,-500.0,0.00020855,2]
[318980334,1710478875383,-500.0,0.00020855,2]
[318980335,1710478875409,-500.0,0.00020855,2]
[318980336,1710478875435,-500.0,0.00020855,2]
[318980337,1710478875460,-216.90606651,0.00020855,2]
[318980338,1710478877229,500.0,0.00020855,2]
[318980339,1710478877496,500.0,0.00020855,2]
[318980340,1710478877778,500.0,0.00020855,2]
[318980341,1710478878067,500.0,0.00020855,2]
[318980342,1710478878354,500.0,0.00020855,2]
[318980343,1710478878631,500.0,0.00020855,2]
[318980344,1710478878946,500.0,0.00020855,2]
[318980345,1710478879272,500.0,0.00020855,2]
[318980346,1710478879559,500.0,0.00020855,2]
[318980347,1710478880092,500.0,0.00020855,2]
[318980348,1710478880361,500.0,0.00020855,2]
[318980349,1710478880653,500.0,0.00020855,2]
[318980350,1710478880916,528.16,0.00020855,2]
[318980351,1710478886657,500.0,0.00020855,2]
[318980352,1710478890315,500.0,0.00020855,2]
[318980353,1710478890979,500.0,0.00020855,2]
[318980354,1710478891580,500.0,0.00020855,2]
[318980355,1710478891854,500.0,0.00020855,2]
[318980356,1710478892132,500.0,0.00020855,2]
[318980357,1710478892431,500.0,0.00020855,2]
[318980358,1710478892709,500.0,0.00020855,2]
[318980359,1710478893212,500.0,0.00020855,2]
[318980360,1710478893442,500.0,0.00020855,2]
[318980361,1710478893575,500.0,0.00020855,2]
[318980362,1710478893906,500.0,0.00020855,2]
[318980363,1710478894148,343.01575502,0.00020855,2]
[318980364,1710479015318,176.847924,0.00019841,2]
[318980367,1710479120145,47419.8982503,0.000155,2]
[318980368,1710479120187,80000.0,0.000155,2]
[318980369,1710479120216,9664.62394569,0.000155,2]
[318980370,1710479120254,209310.97974379,0.000155,2]
[318980371,1710479130984,-155.16447434,0.00015499,2]
[318980372,1710479131009,-129285.83552566,0.000155,2]
[318980550,1710479433386,-3223.90400517,0.00015398,2]
[318980551,1710479433396,-155.16447434,0.00015399,2]
[318980552,1710479433406,-1081.67586538,0.00015399,2]
[318980553,1710479433415,-240.91023365,0.00015399,2]
[318980554,1710479433425,-171.57733227,0.000154,2]
[318980555,1710479433437,-155.33138232,0.00015498,2]
[318980556,1710479433446,-280.71313691,0.00015498,2]
[318980557,1710479433455,-155.47719194,0.00015498,2]
[318980558,1710479433465,-394.04203971,0.00015498,2]
[318980559,1710479433475,-155.18547992,0.00015498,2]
[318980560,1710479433484,-7510.41885839,0.00015499,2]
[318980609,1710479438268,-500.0,0.00015499,2]
[318980611,1710479438526,-6284.15936292,0.00015499,2]
[318980612,1710479438539,-432.25340078,0.00015499,2]
[318980704,1710479446571,-5757.03557093,0.00015499,2]
[318980705,1710479446614,-681.21,0.00015499,2]
[318980706,1710479446625,-26528.73287389,0.00015499,2]
[318980707,1710479446635,-19432.92742922,0.000155,2]
[318980708,1710479446647,-75993.6611058,0.000155,2]
[318980709,1710479446684,-5598.67970937,0.000155,2]
[318980710,1710479446698,-155081.15856,0.000155,2]
[318981079,1710480276206,10646.0,0.00018888,30]
[318981188,1710480633100,-155.15204901,0.00015399,2]
[318981190,1710480633111,-858.53534598,0.00015497,2]
[318981351,1710480640583,-1276.8,0.00015497,2]
[318981364,1710480643652,-9958.86564556,0.00015497,2]
[318981365,1710480643661,-1085.58949393,0.00015498,2]
[318981366,1710480643671,-240.88264999,0.00015498,2]
[318981367,1710480643681,-559.94525131,0.00015498,2]
[318981368,1710480643690,-2628.83986631,0.00015498,2]
[318981396,1710480730804,2300.0,0.00014498,2]
[318981436,1710480943741,235.15146,0.00014498,2]
[318981456,1710480990333,1948.9312739,0.00014498,2]
[318981466,1710481073005,2161.3311983,0.00014498,2]
[318981575,1710481833012,-155.16602765,0.00015351,2]
[318981576,1710481833022,-187.42109409,0.00015352,2]
[318981577,1710481833031,-119.64087826,0.00015352,2]
[318981578,1710481833042,-217.28476062,0.00015352,2]
[318981579,1710481833051,-222.28023938,0.000154,2]
[318981580,1710481833062,-96.23899331,0.000154,2]
[318981581,1710481833071,-179.03186738,0.000154,2]
[318981582,1710481833080,-179.03186738,0.00015402,2]
[318981583,1710481833090,-318.51923266,0.00015434,2]
[318981584,1710481833099,-318.51923266,0.00015468,2]
[318981585,1710481833109,-1518.53587366,0.00015496,2]
[318981586,1710481833119,-155.15981461,0.00015497,2]
[318981587,1710481833128,-186.33152971,0.00015497,2]
[318981588,1710481833138,-2367.14463797,0.00015497,2]
[318981589,1710481833147,-10.55018362,0.00015498,2]
[318981590,1710481833166,-146.67890999,0.00015498,2]
[318981591,1710481833175,-181.25815924,0.00015498,2]
[318981592,1710481833185,-1148.04223621,0.00015498,2]
[318981593,1710481833195,-169.64915952,0.00015498,2]
[318981594,1710481833206,-312.18602686,0.00015499,2]
[318981595,1710481833215,-520.79870882,0.00015499,2]
[318981596,1710481833284,-325.14397417,0.00015499,2]
[318981679,1710481838802,-5957.64909485,0.00015499,2]
[318981681,1710481838813,-993.2643,0.00015499,2]
[318981806,1710481842276,-974.91679524,0.00015499,2]
[318981807,1710481842308,-17001.75,0.00015499,2]
[318981827,1710481843797,-1357.54,0.00015499,2]
[318981830,1710481843865,-2957.09325593,0.00015499,2]
[318981850,1710481846853,-187.42109409,0.00015498,2]
[318981852,1710481846863,-233.39630014,0.00015498,2]
[318981854,1710481846872,-17035.57402712,0.00015499,2]
[318981856,1710481846882,-53486.13759212,0.000155,2]
[318981858,1710481846985,-26937.15979301,0.000155,2]
[318982249,1710483037828,-336.92563888,0.00015399,2]
[318982251,1710483037837,-2656.12496898,0.000154,2]
[318982264,1710483037891,-3595.49355924,0.000154,2]
[318982268,1710483037903,-1985.823,0.000154,2]
[318982332,1710483043025,-2198.55828998,0.000154,2]
[318982333,1710483043035,-637.03846532,0.000154,2]
[318982334,1710483043044,-187.29233727,0.00015498,2]
[318982335,1710483043055,-1875.440316,0.00015499,2]
[318982336,1710483043064,-1850.73799582,0.000155,2]
[318982337,1710483043077,-13517.84976815,0.000155,2]
[318982352,1710483046230,-7363.0,0.000155,2]
[318982354,1710483081328,336.70205779,0.00014724,2]
[318982547,1710484232287,-155.14273131,0.00015499,2]
[318982549,1710484232297,-10067.4699197,0.000155,2]
[318982763,1710484242231,-11184.88459803,0.000155,2]
[318982764,1710484242243,-13657.7978028,0.000155,2]
[318982765,1710484242305,-3101.50050974,0.000155,2]
[318982978,1710485233843,1303.911334,0.00014474,2]
[318983070,1710485374459,1572.7354008,0.00014474,2]
[318983128,1710485432327,-653.4947601,0.00015,2]
[318983130,1710485432337,-1193.202068,0.00015013,2]
[318983132,1710485432346,-213.27606131,0.000154,2]
[318983134,1710485432355,-180.62939547,0.000154,2]
[318983136,1710485432366,-32.64666583,0.000154,2]
[318983138,1710485432376,-213.2760613,0.000154,2]
[318983140,1710485432386,-250.0465759,0.00015498,2]
[318983142,1710485432395,-187.29233727,0.00015499,2]
[318983144,1710485432405,-2628.83986631,0.00015499,2]
[318983146,1710485432417,-77243.59297855,0.000155,2]
[318983245,1710485438333,-2866.49170237,0.000155,2]
[318983275,1710485442925,-3433.31989791,0.000155,2]
[318983276,1710485442937,-3032.08600186,0.000155,2]
[318983277,1710485442948,-57085.40953571,0.000155,2]
[318983278,1710485443305,-892.9999998,0.000155,2]
[318983279,1710485443373,-510700.23337419,0.000155,2]
[318983280,1710485443384,-345.0,0.000155,2]
[318983306,1710485447625,-775.85668755,0.00015345,2]
[318983307,1710485447635,-92297.13636007,0.000155,2]
[318983319,1710485453502,336.85111185,0.00014724,2]
[318983363,1710486148388,3602.12036674,0.0001443,2]
[318983364,1710486164459,2001.17798152,0.0001443,2]
[318983366,1710486198514,2001.17798152,0.0001443,2]
[318983369,1710486216509,1042.61372837,0.00014141,2]
[318983370,1710486234512,157.29610521,0.00014141,2]
[318983371,1710486234542,885.31762316,0.00014141,2]
[318983372,1710486252524,1042.61372837,0.00014141,2]
[318983385,1710486268518,1042.61372837,0.00013858,2]
[318983386,1710486286522,1042.61372837,0.00013858,2]
[318983387,1710486306722,1042.61372837,0.00013858,2]
[318983402,1710486324792,1042.61372837,0.00013581,2]
[318983437,1710486344720,1042.61372837,0.00013581,2]
[318983438,1710486364730,1042.61372837,0.00013581,2]
[318983439,1710486386874,1042.61372837,0.00013309,2]
[318983502,1710486633053,-385.0,0.00015,2]
[318983505,1710486633084,-2000.0,0.00015125,2]
[318983507,1710486633094,-981.16620172,0.00015188,2]
[318983508,1710486633103,-308.044569,0.00015279,2]
[318983510,1710486633112,-182.47872633,0.000154,2]
[318983512,1710486633121,-9289.48308977,0.000155,2]
[318983515,1710486633133,-2380.59593497,0.000155,2]
[318983609,1710486638427,-15237.74150434,0.000155,2]
[318983611,1710486638440,-2126.98666319,0.000155,2]
[318983612,1710486638453,-432.85647337,0.000155,2]
[318983673,1710486641612,-2556.09658286,0.000155,2]
[318983681,1710486643476,-448060.44472439,0.000155,2]
[318983682,1710486643539,-791.2784889,0.000155,2]
[318983691,1710486646852,-25588.73865688,0.000155,2]
[318983692,1710486646864,-35379.70118419,0.000155,2]
[318983728,1710487211066,308.044569,0.0001466,2]
[318983734,1710487375876,308.044569,0.00014466,2]
[318983854,1710487832762,-292.31580624,0.00014841,2]
[318983855,1710487832771,-292.31580624,0.00014941,2]
[318983856,1710487832781,-155.14894299,0.00015,2]
[318983858,1710487832791,-2000.0,0.00015321,2]
[318983860,1710487832800,-531.04945773,0.0001548,2]
[318983862,1710487832811,-7046.13082744,0.00015497,2]
[318983863,1710487832821,-1085.58949393,0.00015498,2]
[318983864,1710487832830,-156.02399691,0.00015498,2]
[318983865,1710487832839,-559.94525131,0.00015499,2]
[318983866,1710487832848,-315.86771441,0.00015499,2]
[318983867,1710487832858,-240.88264999,0.00015499,2]
[318983868,1710487832867,-44827.92668403,0.000155,2]
[318983869,1710487832878,-925.62681255,0.000155,2]
[318983963,1710487838660,-525.47694598,0.00015345,2]
[318983964,1710487838670,-318881.04646971,0.000155,2]
[318983980,1710487840694,-809.96960681,0.000155,2]
[318984000,1710487843701,-602.41731093,0.000155,2]
[318984001,1710487843759,-68369.26456627,0.000155,2]
[318984010,1710487846870,-1755.72476602,0.000155,2]
[318984011,1710487846942,-69119.12203506,0.000155,2]
[318984014,1710487870967,264.26793788,0.00015498,7]
[318984021,1710487994398,187.08775268,0.00014741,2]
[318984026,1710488108552,155.15360207,0.00014741,2]
[318984029,1710488353190,2610.4610232,0.00014449,2]
[318984035,1710488388530,183.958812,0.00014424,2]
[318984053,1710488572023,6021.02222193,0.000148,2]
[318984054,1710488577616,10000.0,0.000147,2]
[318984055,1710488583558,9000.0,0.000147,2]
[318984056,1710488597958,9101.49,0.000146,2]
[318984060,1710488840963,183.958812,0.0001434,2]
[318984147,1710489032404,-1000.0,0.000147,2]
[318984149,1710489032414,-5953.4284924,0.000147,2]
[318984159,1710489032498,-4046.5715076,0.000147,2]
[318984161,1710489032508,-3978.97777807,0.000148,2]
[318984163,1710489032519,-2000.0,0.00014978,2]
[318984165,1710489032529,-455.33189501,0.00015,2]
[318984167,1710489032540,-473.99637409,0.00015,2]
[318984169,1710489032549,-37.39691483,0.000153,2]
[318984319,1710489033926,1000.0,0.00025,120]
[318984406,1710489037828,-121.8627015,0.000153,2]
[318984407,1710489037838,-159.25961633,0.00015333,2]
[318984408,1710489037847,-159.25961633,0.00015367,2]
[318984409,1710489037856,-4961.16488537,0.000154,2]